[Event "Early-Titled-Tuesday-Blitz-October-03-2023"]
[Site "Chess.com"]
[Date "2023.10.03"]
[Round "11"]
[White "Zhigalko_Sergei"]
[Black "Iball95"]
[Result "1-0"]
[WhiteElo "2929"]
[BlackElo "2773"]
[TimeControl "180+1"]
[EndTime "10:05:22 PDT"]
[Termination "Zhigalko_Sergei won by resignation"]

1. e4 {[%clk 0:03:00.9]} 1... c5 {[%clk 0:02:58.2]} 2. Nf3 {[%clk 0:03:01.2]}
2... e6 {[%clk 0:02:58.8]} 3. c3 {[%clk 0:03:01.6]} 3... d5 {[%clk 0:02:58.3]}
4. e5 {[%clk 0:03:02.2]} 4... Nc6 {[%clk 0:02:58]} 5. d4 {[%clk 0:03:03.1]} 5...
cxd4 {[%clk 0:02:58.6]} 6. cxd4 {[%clk 0:03:04]} 6... Nge7 {[%clk 0:02:58.9]} 7.
Nc3 {[%clk 0:03:03.9]} 7... Nf5 {[%clk 0:02:59.5]} 8. a3 {[%clk 0:03:03.8]} 8...
Be7 {[%clk 0:02:54.3]} 9. Bd3 {[%clk 0:03:03.6]} 9... Nfxd4 {[%clk 0:02:49.3]}
10. Nxd4 {[%clk 0:03:04.5]} 10... Nxd4 {[%clk 0:02:49.8]} 11. Qg4 {[%clk
0:03:05.3]} 11... Nb3 {[%clk 0:02:39.4]} 12. Qa4+ {[%clk 0:03:05]} 12... Bd7
{[%clk 0:02:38.7]} 13. Qxb3 {[%clk 0:03:05.3]} 13... O-O {[%clk 0:02:37.5]} 14.
O-O {[%clk 0:03:03.7]} 14... f6 {[%clk 0:02:35.6]} 15. Bf4 {[%clk 0:02:56.5]}
15... Bc6 {[%clk 0:02:34.6]} 16. Rae1 {[%clk 0:02:49.5]} 16... f5 {[%clk
0:02:30.4]} 17. Ne2 {[%clk 0:02:46.5]} 17... g5 {[%clk 0:02:30.2]} 18. Bd2
{[%clk 0:02:42.7]} 18... Kh8 {[%clk 0:02:25.2]} 19. Nd4 {[%clk 0:02:40.7]} 19...
Qd7 {[%clk 0:02:20.4]} 20. Bb4 {[%clk 0:02:35]} 20... f4 {[%clk 0:02:15.4]} 21.
Rc1 {[%clk 0:02:32.1]} 21... f3 {[%clk 0:02:12.5]} 22. Nxf3 {[%clk 0:02:20.6]}
22... Rxf3 {[%clk 0:02:10.8]} 23. gxf3 {[%clk 0:02:21.5]} 23... g4 {[%clk
0:02:01.2]} 24. fxg4 {[%clk 0:02:18.8]} 24... Rg8 {[%clk 0:01:58]} 25. f3 {[%clk
0:02:14.1]} 25... Bg5 {[%clk 0:01:55.1]} 26. Bc5 {[%clk 0:02:05.6]} 26... d4
{[%clk 0:01:53.2]} 27. Rce1 {[%clk 0:01:59.4]} 27... b6 {[%clk 0:01:21.3]} 28.
Bd6 {[%clk 0:01:59.4]} 28... Be3+ {[%clk 0:01:18.9]} 29. Rxe3 {[%clk 0:01:59.2]}
29... dxe3 {[%clk 0:01:19.6]} 30. Be2 {[%clk 0:01:56.3]} 30... Bd5 {[%clk
0:00:55.7]} 31. Qxe3 {[%clk 0:01:55.5]} 31... Qa4 {[%clk 0:00:56.6]} 32. Be7
{[%clk 0:01:40.3]} 1-0

[Event "Early-Titled-Tuesday-Blitz-October-03-2023"]
[Site "Chess.com"]
[Date "2023.10.03"]
[Round "11"]
[White "Iskusnyh"]
[Black "inegrepus"]
[Result "1-0"]
[WhiteElo "2595"]
[BlackElo "2180"]
[TimeControl "180+1"]
[EndTime "10:05:22 PDT"]
[Termination "Iskusnyh won by resignation"]

1. d4 {[%clk 0:02:59.9]} 1... Nf6 {[%clk 0:02:54.3]} 2. c4 {[%clk 0:02:59.8]}
2... c5 {[%clk 0:02:52.4]} 3. d5 {[%clk 0:02:59.2]} 3... b5 {[%clk 0:02:52.4]}
4. Qc2 {[%clk 0:02:54.9]} 4... e6 {[%clk 0:02:48.9]} 5. e4 {[%clk 0:02:54.6]}
5... exd5 {[%clk 0:02:46.1]} 6. cxd5 {[%clk 0:02:52.7]} 6... b4 {[%clk
0:02:38.7]} 7. Nf3 {[%clk 0:02:51.3]} 7... d6 {[%clk 0:02:38.5]} 8. Bf4 {[%clk
0:02:36]} 8... Be7 {[%clk 0:02:32.1]} 9. Nbd2 {[%clk 0:02:33.7]} 9... O-O {[%clk
0:02:32]} 10. Bd3 {[%clk 0:02:32.5]} 10... Ba6 {[%clk 0:02:31.5]} 11. Bxa6
{[%clk 0:02:28.8]} 11... Nxa6 {[%clk 0:02:30.8]} 12. O-O {[%clk 0:02:29.1]}
12... Nh5 {[%clk 0:02:28.1]} 13. Be3 {[%clk 0:02:25]} 13... g6 {[%clk
0:02:27.4]} 14. Bh6 {[%clk 0:02:20.7]} 14... Ng7 {[%clk 0:02:26]} 15. Nc4 {[%clk
0:02:19.3]} 15... Nc7 {[%clk 0:02:23.5]} 16. a4 {[%clk 0:02:18.2]} 16... Bf6
{[%clk 0:02:16.1]} 17. Rad1 {[%clk 0:02:14.3]} 17... Re8 {[%clk 0:02:15]} 18.
Bf4 {[%clk 0:02:10.7]} 18... Be7 {[%clk 0:02:06]} 19. e5 {[%clk 0:01:47.9]}
19... dxe5 {[%clk 0:01:48]} 20. Nfxe5 {[%clk 0:01:45.6]} 20... Bf6 {[%clk
0:01:42.9]} 21. Nc6 {[%clk 0:01:40]} 21... Qc8 {[%clk 0:01:41.9]} 22. Nd6 {[%clk
0:01:38.7]} 22... Nxd5 {[%clk 0:01:37.4]} 23. Rxd5 {[%clk 0:01:31.8]} 23... Qxc6
{[%clk 0:01:35.9]} 24. Rxc5 {[%clk 0:01:31.1]} 24... Qb6 {[%clk 0:01:26.4]} 25.
a5 {[%clk 0:01:21.2]} 25... Qa6 {[%clk 0:01:17.7]} 26. Nxe8 {[%clk 0:01:07.6]}
26... Rxe8 {[%clk 0:01:15.9]} 27. Rc6 {[%clk 0:01:05.8]} 1-0

[Event "Early-Titled-Tuesday-Blitz-October-03-2023"]
[Site "Chess.com"]
[Date "2023.10.03"]
[Round "11"]
[White "Balla_Tamas"]
[Black "NMJeevanK"]
[Result "0-1"]
[WhiteElo "2451"]
[BlackElo "2536"]
[TimeControl "180+1"]
[EndTime "10:05:34 PDT"]
[Termination "NMJeevanK won by resignation"]

1. e4 {[%clk 0:03:00.9]} 1... g6 {[%clk 0:02:55.1]} 2. d4 {[%clk 0:03:00.4]}
2... Bg7 {[%clk 0:02:54.7]} 3. Nc3 {[%clk 0:02:59.3]} 3... d6 {[%clk 0:02:55.2]}
4. f4 {[%clk 0:02:59.2]} 4... a6 {[%clk 0:02:54.9]} 5. Nf3 {[%clk 0:02:57.9]}
5... Nd7 {[%clk 0:02:55.5]} 6. Bd3 {[%clk 0:02:54.6]} 6... c5 {[%clk 0:02:55.4]}
7. Be3 {[%clk 0:02:48.9]} 7... cxd4 {[%clk 0:02:55.1]} 8. Bxd4 {[%clk
0:02:49.8]} 8... e5 {[%clk 0:02:52.1]} 9. fxe5 {[%clk 0:02:28.2]} 9... dxe5
{[%clk 0:02:50.5]} 10. Be3 {[%clk 0:02:23.8]} 10... Ngf6 {[%clk 0:02:49.5]} 11.
O-O {[%clk 0:02:23.4]} 11... Ng4 {[%clk 0:02:48.3]} 12. Qe2 {[%clk 0:02:12.2]}
12... O-O {[%clk 0:02:44.2]} 13. Nd5 {[%clk 0:02:06.4]} 13... Nxe3 {[%clk
0:02:37.8]} 14. Qxe3 {[%clk 0:02:07.3]} 14... Nf6 {[%clk 0:02:30.7]} 15. c4
{[%clk 0:01:55.9]} 15... Be6 {[%clk 0:02:03.9]} 16. Kh1 {[%clk 0:01:55.2]} 16...
Ng4 {[%clk 0:01:59]} 17. Qe2 {[%clk 0:01:48.7]} 17... Rc8 {[%clk 0:01:55.4]} 18.
h3 {[%clk 0:01:38.3]} 18... Nh6 {[%clk 0:01:51.9]} 19. Qe3 {[%clk 0:01:32.6]}
19... f6 {[%clk 0:01:47.8]} 20. Rac1 {[%clk 0:01:17.7]} 20... Nf7 {[%clk
0:01:46.6]} 21. Rfd1 {[%clk 0:01:16.1]} 21... Bh6 {[%clk 0:01:46.4]} 22. Qf2
{[%clk 0:01:08.9]} 22... Bxc1 {[%clk 0:01:46.2]} 23. Rxc1 {[%clk 0:01:09.8]}
23... Nd6 {[%clk 0:01:42.2]} 24. b3 {[%clk 0:00:58.9]} 24... Bxd5 {[%clk
0:01:41.9]} 25. exd5 {[%clk 0:00:36.6]} 25... e4 {[%clk 0:01:41.1]} 26. Bxe4
{[%clk 0:00:25.7]} 26... Nxe4 {[%clk 0:01:42]} 27. Qd4 {[%clk 0:00:22.2]} 27...
Ng3+ {[%clk 0:01:40.8]} 28. Kh2 {[%clk 0:00:22.2]} 28... Ne2 {[%clk 0:01:39.3]}
0-1

[Event "Early-Titled-Tuesday-Blitz-October-03-2023"]
[Site "Chess.com"]
[Date "2023.10.03"]
[Round "11"]
[White "AjedrezenMadrid"]
[Black "Vesper2018"]
[Result "0-1"]
[WhiteElo "2457"]
[BlackElo "2578"]
[TimeControl "180+1"]
[EndTime "10:05:57 PDT"]
[Termination "Vesper2018 won by resignation"]

1. Nf3 {[%clk 0:03:00.9]} 1... Nf6 {[%clk 0:02:59.8]} 2. b3 {[%clk 0:03:00.8]}
2... g6 {[%clk 0:03:00.5]} 3. Bb2 {[%clk 0:03:01.2]} 3... Bg7 {[%clk 0:03:01.3]}
4. g3 {[%clk 0:03:01.8]} 4... d6 {[%clk 0:03:01.7]} 5. d4 {[%clk 0:03:01.3]}
5... O-O {[%clk 0:03:01]} 6. Bg2 {[%clk 0:03:00.5]} 6... Nbd7 {[%clk 0:02:56.6]}
7. O-O {[%clk 0:03:00]} 7... c5 {[%clk 0:02:56.7]} 8. c4 {[%clk 0:02:59.7]} 8...
a6 {[%clk 0:02:45.6]} 9. Nc3 {[%clk 0:02:58.7]} 9... Rb8 {[%clk 0:02:39.4]} 10.
a4 {[%clk 0:02:50.2]} 10... cxd4 {[%clk 0:02:36]} 11. Nxd4 {[%clk 0:02:50.1]}
11... a5 {[%clk 0:02:36.1]} 12. Re1 {[%clk 0:02:33]} 12... Nc5 {[%clk
0:02:34.8]} 13. e4 {[%clk 0:02:25.9]} 13... Ng4 {[%clk 0:02:24.9]} 14. h3 {[%clk
0:02:09.4]} 14... Ne5 {[%clk 0:02:21.7]} 15. Bf1 {[%clk 0:02:08.7]} 15... Nc6
{[%clk 0:02:16.4]} 16. Nd5 {[%clk 0:02:04.2]} 16... Nxd4 {[%clk 0:02:11.7]} 17.
Bxd4 {[%clk 0:02:03.3]} 17... Bxd4 {[%clk 0:02:12.3]} 18. Qxd4 {[%clk
0:02:04.1]} 18... Nxb3 {[%clk 0:02:12.9]} 19. Qc3 {[%clk 0:02:00.3]} 19... Nxa1
{[%clk 0:02:11.6]} 20. e5 {[%clk 0:01:59.7]} 20... dxe5 {[%clk 0:02:06.8]} 21.
Qxe5 {[%clk 0:01:59.3]} 21... Be6 {[%clk 0:02:07]} 22. Rxa1 {[%clk 0:01:47.4]}
22... Bxd5 {[%clk 0:02:03]} 23. cxd5 {[%clk 0:01:45.8]} 23... Qd6 {[%clk
0:02:01]} 24. Qg5 {[%clk 0:01:45.3]} 24... Rbc8 {[%clk 0:01:58.5]} 25. h4 {[%clk
0:01:42.5]} 25... Rc5 {[%clk 0:01:57.3]} 26. Bg2 {[%clk 0:01:42.2]} 26... Rfc8
{[%clk 0:01:45.8]} 27. Kh2 {[%clk 0:01:42.3]} 27... Rc2 {[%clk 0:01:43.4]} 28.
Rf1 {[%clk 0:01:37]} 28... Ra2 {[%clk 0:01:37.8]} 29. Bh3 {[%clk 0:01:34.8]}
29... Rcc2 {[%clk 0:01:36.5]} 30. Kg1 {[%clk 0:01:31.8]} 30... Rxa4 {[%clk
0:01:28.9]} 31. h5 {[%clk 0:01:31]} 31... Rd4 {[%clk 0:01:25.1]} 32. hxg6 {[%clk
0:01:25.2]} 32... hxg6 {[%clk 0:01:24.9]} 33. Be6 {[%clk 0:01:25.5]} 33... Kg7
{[%clk 0:01:19.5]} 34. Qe3 {[%clk 0:01:21.8]} 34... Rdd2 {[%clk 0:01:15.1]} 35.
Rb1 {[%clk 0:00:53.3]} 35... fxe6 {[%clk 0:01:09.3]} 36. Rxb7 {[%clk 0:00:53.5]}
36... Rd1+ {[%clk 0:01:08.3]} 37. Kg2 {[%clk 0:00:53.6]} 37... Qxd5+ {[%clk
0:01:08.6]} 0-1

[Event "Early-Titled-Tuesday-Blitz-October-03-2023"]
[Site "Chess.com"]
[Date "2023.10.03"]
[Round "11"]
[White "bylavochka"]
[Black "hypert"]
[Result "0-1"]
[WhiteElo "2344"]
[BlackElo "2498"]
[TimeControl "180+1"]
[EndTime "10:05:58 PDT"]
[Termination "hypert won on time"]

1. e4 {[%clk 0:03:00.9]} 1... e5 {[%clk 0:02:59.5]} 2. Nc3 {[%clk 0:02:59.8]}
2... Nc6 {[%clk 0:02:59.3]} 3. g3 {[%clk 0:03:00.1]} 3... f5 {[%clk 0:02:59.1]}
4. d3 {[%clk 0:02:41.9]} 4... Nf6 {[%clk 0:02:57.8]} 5. Bg2 {[%clk 0:02:40.7]}
5... Bb4 {[%clk 0:02:54.6]} 6. Ne2 {[%clk 0:02:38.2]} 6... d5 {[%clk 0:02:46.8]}
7. exd5 {[%clk 0:02:36.8]} 7... Nxd5 {[%clk 0:02:46.5]} 8. O-O {[%clk
0:02:32.6]} 8... Nxc3 {[%clk 0:02:44.4]} 9. bxc3 {[%clk 0:02:09.8]} 9... Bd6
{[%clk 0:02:43.6]} 10. f4 {[%clk 0:01:33.8]} 10... O-O {[%clk 0:02:38.3]} 11.
fxe5 {[%clk 0:01:29.9]} 11... Nxe5 {[%clk 0:02:36.8]} 12. Rb1 {[%clk 0:01:19.7]}
12... Rb8 {[%clk 0:02:35.8]} 13. Bf4 {[%clk 0:01:01]} 13... c6 {[%clk
0:02:33.8]} 14. Nd4 {[%clk 0:00:55.1]} 14... Ng6 {[%clk 0:02:24.9]} 15. Nxc6
{[%clk 0:00:31]} 15... bxc6 {[%clk 0:02:17.2]} 16. Rxb8 {[%clk 0:00:28.1]} 16...
Bxb8 {[%clk 0:02:16]} 17. Bxb8 {[%clk 0:00:27.6]} 17... Qb6+ {[%clk 0:02:15.7]}
18. d4 {[%clk 0:00:23.6]} 18... Qxb8 {[%clk 0:02:13.4]} 19. Bxc6 {[%clk
0:00:24.2]} 19... Qc7 {[%clk 0:02:06.5]} 20. Bd5+ {[%clk 0:00:24]} 20... Kh8
{[%clk 0:02:05.8]} 21. c4 {[%clk 0:00:23.2]} 21... Ne7 {[%clk 0:02:00.4]} 22.
Qd3 {[%clk 0:00:19.8]} 22... Ba6 {[%clk 0:01:55.7]} 23. Be6 {[%clk 0:00:16.1]}
23... Qc6 {[%clk 0:01:47.2]} 24. d5 {[%clk 0:00:07.6]} 24... Qc5+ {[%clk
0:01:46.6]} 25. Rf2 {[%clk 0:00:04.6]} 25... Bxc4 {[%clk 0:01:45.1]} 26. Qc3
{[%clk 0:00:05.1]} 26... Nxd5 {[%clk 0:01:42.1]} 27. Bxf5 {[%clk 0:00:01.7]}
27... Nxc3 {[%clk 0:01:40.5]} 0-1

[Event "Early-Titled-Tuesday-Blitz-October-03-2023"]
[Site "Chess.com"]
[Date "2023.10.03"]
[Round "11"]
[White "Kotofeyca"]
[Black "Marcin"]
[Result "1-0"]
[WhiteElo "2426"]
[BlackElo "2498"]
[TimeControl "180+1"]
[EndTime "10:06:00 PDT"]
[Termination "Kotofeyca won by resignation"]

1. d4 {[%clk 0:03:00.9]} 1... d5 {[%clk 0:02:56.6]} 2. c4 {[%clk 0:03:01.1]}
2... e6 {[%clk 0:02:57.2]} 3. cxd5 {[%clk 0:03:01.2]} 3... exd5 {[%clk
0:02:57.3]} 4. Nc3 {[%clk 0:03:02]} 4... c6 {[%clk 0:02:57.8]} 5. Qc2 {[%clk
0:03:01.8]} 5... h6 {[%clk 0:02:48.7]} 6. Bf4 {[%clk 0:03:01.4]} 6... Nf6 {[%clk
0:02:48.9]} 7. e3 {[%clk 0:03:01.6]} 7... Be7 {[%clk 0:02:47.2]} 8. Bd3 {[%clk
0:03:01.6]} 8... O-O {[%clk 0:02:47.4]} 9. Nf3 {[%clk 0:02:59.5]} 9... Nbd7
{[%clk 0:02:46.5]} 10. h3 {[%clk 0:02:52.8]} 10... Re8 {[%clk 0:02:44.5]} 11.
O-O {[%clk 0:02:51.5]} 11... Nf8 {[%clk 0:02:40.1]} 12. Rab1 {[%clk 0:02:48.4]}
12... a5 {[%clk 0:02:36.3]} 13. a3 {[%clk 0:02:47.8]} 13... Ne6 {[%clk
0:02:33.8]} 14. Be5 {[%clk 0:02:41.6]} 14... Nd7 {[%clk 0:02:23.2]} 15. Bh2
{[%clk 0:02:38.7]} 15... Nf6 {[%clk 0:02:19]} 16. Ne5 {[%clk 0:02:27.1]} 16...
Ng5 {[%clk 0:01:57.3]} 17. b4 {[%clk 0:02:20.9]} 17... axb4 {[%clk 0:01:57.1]}
18. axb4 {[%clk 0:02:21.8]} 18... Ra3 {[%clk 0:01:55.9]} 19. b5 {[%clk
0:02:16.9]} 19... c5 {[%clk 0:01:48.3]} 20. dxc5 {[%clk 0:01:54.2]} 20... Bxc5
{[%clk 0:01:49.2]} 21. h4 {[%clk 0:00:55.9]} 21... Ne6 {[%clk 0:01:34.3]} 22.
Rfd1 {[%clk 0:00:48.2]} 22... Qa5 {[%clk 0:01:20.9]} 23. Ne2 {[%clk 0:00:42]}
23... Nf8 {[%clk 0:00:58.7]} 24. Qxc5 {[%clk 0:00:37.4]} 1-0

[Event "Early-Titled-Tuesday-Blitz-October-03-2023"]
[Site "Chess.com"]
[Date "2023.10.03"]
[Round "11"]
[White "grandemestregringo"]
[Black "fabianvivasz"]
[Result "1-0"]
[WhiteElo "2536"]
[BlackElo "2449"]
[TimeControl "180+1"]
[EndTime "10:06:07 PDT"]
[Termination "grandemestregringo won on time"]

1. e4 {[%clk 0:03:00.9]} 1... c5 {[%clk 0:02:54.6]} 2. Nf3 {[%clk 0:02:58.9]}
2... d6 {[%clk 0:02:53.3]} 3. d4 {[%clk 0:02:58.7]} 3... cxd4 {[%clk 0:02:54.2]}
4. Nxd4 {[%clk 0:02:59.4]} 4... Nf6 {[%clk 0:02:54]} 5. Nc3 {[%clk 0:02:58.9]}
5... g6 {[%clk 0:02:54.1]} 6. Be3 {[%clk 0:02:58.3]} 6... Bg7 {[%clk 0:02:53.5]}
7. f3 {[%clk 0:02:58.6]} 7... O-O {[%clk 0:02:52]} 8. Qd2 {[%clk 0:02:57.9]}
8... Nc6 {[%clk 0:02:52.5]} 9. O-O-O {[%clk 0:02:57.1]} 9... d5 {[%clk
0:02:52.5]} 10. exd5 {[%clk 0:02:53.7]} 10... Nxd5 {[%clk 0:02:51.6]} 11. Nxc6
{[%clk 0:02:54.3]} 11... bxc6 {[%clk 0:02:50.9]} 12. Bd4 {[%clk 0:02:55]} 12...
e5 {[%clk 0:02:50.3]} 13. Bc5 {[%clk 0:02:55.1]} 13... Re8 {[%clk 0:02:50.1]}
14. Ne4 {[%clk 0:02:54.4]} 14... Qc7 {[%clk 0:02:47.7]} 15. g4 {[%clk
0:02:53.4]} 15... h6 {[%clk 0:02:16.3]} 16. h4 {[%clk 0:02:39]} 16... f5 {[%clk
0:02:09.5]} 17. gxf5 {[%clk 0:02:35.8]} 17... gxf5 {[%clk 0:02:10.4]} 18. Bc4
{[%clk 0:02:29.9]} 18... fxe4 {[%clk 0:01:35.2]} 19. fxe4 {[%clk 0:02:27.9]}
19... Be6 {[%clk 0:01:35.8]} 20. exd5 {[%clk 0:02:07.9]} 20... cxd5 {[%clk
0:01:36]} 21. Rhg1 {[%clk 0:02:08.1]} 21... Qxc5 {[%clk 0:00:28.8]} 22. Qxh6
{[%clk 0:02:06.5]} 22... Qf8 {[%clk 0:00:10.8]} 23. Rdf1 {[%clk 0:01:34.9]}
23... Qe7 {[%clk 0:00:10.2]} 24. Rg6 {[%clk 0:01:32.1]} 24... Rf8 {[%clk
0:00:03.4]} 25. Rfg1 {[%clk 0:01:30.6]} 25... Rf7 {[%clk 0:00:03.2]} 26. Rxe6
{[%clk 0:01:30.3]} 26... Qc5 {[%clk 0:00:01.4]} 27. Reg6 {[%clk 0:01:27.3]} 1-0

[Event "Early-Titled-Tuesday-Blitz-October-03-2023"]
[Site "Chess.com"]
[Date "2023.10.03"]
[Round "11"]
[White "ContrVersia"]
[Black "djano"]
[Result "1-0"]
[WhiteElo "2882"]
[BlackElo "2677"]
[TimeControl "180+1"]
[EndTime "10:06:13 PDT"]
[Termination "ContrVersia won by resignation"]

1. Nf3 {[%clk 0:03:00.9]} 1... d5 {[%clk 0:02:59.4]} 2. c4 {[%clk 0:03:01.6]}
2... e6 {[%clk 0:02:58.8]} 3. g3 {[%clk 0:03:01.8]} 3... Nf6 {[%clk 0:02:58.6]}
4. b3 {[%clk 0:03:02]} 4... Nc6 {[%clk 0:02:57.9]} 5. Bg2 {[%clk 0:03:00.7]}
5... Bd6 {[%clk 0:02:58.1]} 6. O-O {[%clk 0:03:00.5]} 6... O-O {[%clk
0:02:58.2]} 7. Bb2 {[%clk 0:03:00.8]} 7... Re8 {[%clk 0:02:54.5]} 8. d4 {[%clk
0:02:56.9]} 8... Ne4 {[%clk 0:02:40.3]} 9. a3 {[%clk 0:02:52.3]} 9... Qf6 {[%clk
0:02:26.4]} 10. Qc2 {[%clk 0:02:46.7]} 10... Qg6 {[%clk 0:02:20]} 11. Nh4 {[%clk
0:02:43.4]} 11... Qh5 {[%clk 0:02:08.6]} 12. Bxe4 {[%clk 0:02:40.3]} 12... dxe4
{[%clk 0:02:09.2]} 13. Qxe4 {[%clk 0:02:41]} 13... e5 {[%clk 0:02:02.2]} 14. d5
{[%clk 0:02:38.4]} 14... Bh3 {[%clk 0:01:50.5]} 15. dxc6 {[%clk 0:02:33.4]}
15... Bxf1 {[%clk 0:01:50.2]} 16. Kxf1 {[%clk 0:02:33.5]} 16... bxc6 {[%clk
0:01:43.2]} 17. Nd2 {[%clk 0:02:31.3]} 17... Rab8 {[%clk 0:01:41.3]} 18. Bc3
{[%clk 0:02:27.5]} 18... g6 {[%clk 0:01:35.8]} 19. Qxc6 {[%clk 0:02:21.5]} 19...
f5 {[%clk 0:01:10.7]} 20. c5 {[%clk 0:02:17.9]} 20... Bf8 {[%clk 0:00:56.5]} 21.
Qd5+ {[%clk 0:02:17.2]} 21... Kh8 {[%clk 0:00:55.2]} 22. Bxe5+ {[%clk 0:02:17]}
22... Bg7 {[%clk 0:00:55.1]} 23. Bxg7+ {[%clk 0:02:16.2]} 23... Kxg7 {[%clk
0:00:56]} 24. Qd4+ {[%clk 0:02:12.5]} 24... Kg8 {[%clk 0:00:53.5]} 25. Ndf3
{[%clk 0:02:12.5]} 25... Rbd8 {[%clk 0:00:46.6]} 26. Qf6 {[%clk 0:02:09.8]}
26... Qg4 {[%clk 0:00:40.2]} 27. Ne5 {[%clk 0:02:00]} 27... Qh3+ {[%clk
0:00:19.6]} 28. Kg1 {[%clk 0:01:59.3]} 28... Rf8 {[%clk 0:00:20.5]} 29. Qe6+
{[%clk 0:01:58.6]} 29... Kg7 {[%clk 0:00:20.9]} 30. Qe7+ {[%clk 0:01:58]} 30...
Kg8 {[%clk 0:00:20.1]} 31. Nd7 {[%clk 0:01:50.6]} 31... f4 {[%clk 0:00:05.4]}
32. Nxf8 {[%clk 0:01:42.5]} 32... Rxf8 {[%clk 0:00:05.5]} 33. Rd1 {[%clk
0:01:38]} 33... fxg3 {[%clk 0:00:05.2]} 34. hxg3 {[%clk 0:01:37.3]} 34... Qg4
{[%clk 0:00:01.9]} 35. Rd7 {[%clk 0:01:34.7]} 1-0

[Event "Early-Titled-Tuesday-Blitz-October-03-2023"]
[Site "Chess.com"]
[Date "2023.10.03"]
[Round "11"]
[White "Grischuk"]
[Black "vladislavkovalev"]
[Result "1-0"]
[WhiteElo "3009"]
[BlackElo "2875"]
[TimeControl "180+1"]
[EndTime "10:06:18 PDT"]
[Termination "Grischuk won on time"]

1. d4 {[%clk 0:03:00.9]} 1... Nf6 {[%clk 0:03:00.5]} 2. c4 {[%clk 0:03:00.7]}
2... e6 {[%clk 0:03:01]} 3. Bg5 {[%clk 0:03:01.4]} 3... d5 {[%clk 0:02:56.3]} 4.
e3 {[%clk 0:03:01.7]} 4... Nbd7 {[%clk 0:02:53.2]} 5. Nc3 {[%clk 0:03:01.5]}
5... h6 {[%clk 0:02:52.4]} 6. Bf4 {[%clk 0:02:59.5]} 6... Be7 {[%clk 0:02:38.4]}
7. Nf3 {[%clk 0:02:56.7]} 7... b6 {[%clk 0:02:09.8]} 8. cxd5 {[%clk 0:02:45.7]}
8... Nxd5 {[%clk 0:01:53.3]} 9. Nxd5 {[%clk 0:02:45.7]} 9... exd5 {[%clk
0:01:54.2]} 10. Rc1 {[%clk 0:02:46]} 10... Bb4+ {[%clk 0:01:32.5]} 11. Nd2
{[%clk 0:02:45.6]} 11... c5 {[%clk 0:01:33.2]} 12. dxc5 {[%clk 0:01:44.1]} 12...
Nxc5 {[%clk 0:01:08.1]} 13. a3 {[%clk 0:01:36]} 13... Bxd2+ {[%clk 0:01:06.7]}
14. Qxd2 {[%clk 0:01:36.9]} 14... Nb3 {[%clk 0:00:39.1]} 15. Bb5+ {[%clk
0:01:36.3]} 15... Bd7 {[%clk 0:00:39.8]} 16. Qxd5 {[%clk 0:01:36.4]} 16... Nxc1
{[%clk 0:00:40.2]} 17. Bxd7+ {[%clk 0:01:36.2]} 17... Qxd7 {[%clk 0:00:41.1]}
18. Qxa8+ {[%clk 0:01:35.9]} 18... Ke7 {[%clk 0:00:41.8]} 19. Qe4+ {[%clk
0:01:28.8]} 19... Qe6 {[%clk 0:00:38.1]} 20. Qb4+ {[%clk 0:01:27.5]} 20... Ke8
{[%clk 0:00:27.1]} 21. Qc3 {[%clk 0:01:17]} 21... Nb3 {[%clk 0:00:17.2]} 22.
Qxg7 {[%clk 0:01:14.4]} 22... Rf8 {[%clk 0:00:09.9]} 23. O-O {[%clk 0:01:05.6]}
1-0

[Event "Early-Titled-Tuesday-Blitz-October-03-2023"]
[Site "Chess.com"]
[Date "2023.10.03"]
[Round "11"]
[White "kidagent"]
[Black "AEMEffi"]
[Result "0-1"]
[WhiteElo "2272"]
[BlackElo "2392"]
[TimeControl "180+1"]
[EndTime "10:06:32 PDT"]
[Termination "AEMEffi won by resignation"]

1. c4 {[%clk 0:03:00.9]} 1... e5 {[%clk 0:02:59.1]} 2. g3 {[%clk 0:03:01.2]}
2... Nf6 {[%clk 0:02:59.1]} 3. Bg2 {[%clk 0:02:59.9]} 3... Nc6 {[%clk
0:02:58.5]} 4. Nc3 {[%clk 0:02:59.8]} 4... Bc5 {[%clk 0:02:56.6]} 5. Nf3 {[%clk
0:02:58.4]} 5... d6 {[%clk 0:02:53.2]} 6. e3 {[%clk 0:02:53.6]} 6... O-O {[%clk
0:02:51.3]} 7. O-O {[%clk 0:02:49.6]} 7... Bg4 {[%clk 0:02:40.3]} 8. h3 {[%clk
0:02:44.7]} 8... Bxf3 {[%clk 0:02:34.2]} 9. Bxf3 {[%clk 0:02:43.7]} 9... Re8
{[%clk 0:02:32.9]} 10. d3 {[%clk 0:02:38.2]} 10... Qc8 {[%clk 0:02:24.2]} 11.
Bg2 {[%clk 0:02:37.7]} 11... a6 {[%clk 0:02:20]} 12. a3 {[%clk 0:02:36.8]} 12...
Ba7 {[%clk 0:02:07.3]} 13. b4 {[%clk 0:02:36.1]} 13... Ne7 {[%clk 0:02:03.8]}
14. Nd5 {[%clk 0:02:25.2]} 14... Nexd5 {[%clk 0:01:49.5]} 15. cxd5 {[%clk
0:02:24.4]} 15... c6 {[%clk 0:01:49.8]} 16. dxc6 {[%clk 0:02:21.3]} 16... bxc6
{[%clk 0:01:50.7]} 17. Bb2 {[%clk 0:02:21.2]} 17... d5 {[%clk 0:01:46.5]} 18.
Rc1 {[%clk 0:02:19.5]} 18... Qd7 {[%clk 0:01:46.7]} 19. Kh2 {[%clk 0:02:18.5]}
19... Rec8 {[%clk 0:01:37]} 20. Qe2 {[%clk 0:02:17.3]} 20... Bb8 {[%clk
0:01:36.8]} 21. f4 {[%clk 0:02:13.6]} 21... Qe7 {[%clk 0:01:10.7]} 22. f5 {[%clk
0:02:05.5]} 22... a5 {[%clk 0:01:08]} 23. b5 {[%clk 0:02:03]} 23... c5 {[%clk
0:01:01.8]} 24. d4 {[%clk 0:01:58.4]} 24... exd4 {[%clk 0:00:57.5]} 25. Bxd4
{[%clk 0:01:57.2]} 25... Bxg3+ {[%clk 0:00:48.8]} 26. Kxg3 {[%clk 0:01:56.1]}
26... cxd4 {[%clk 0:00:49.5]} 27. Qd3 {[%clk 0:01:42.1]} 27... Rxc1 {[%clk
0:00:28.8]} 28. Rxc1 {[%clk 0:01:41.3]} 28... dxe3 {[%clk 0:00:29.7]} 29. Kf3
{[%clk 0:01:30.2]} 29... Re8 {[%clk 0:00:22.3]} 30. Ke2 {[%clk 0:01:29.4]} 30...
Qe5 {[%clk 0:00:20.7]} 31. b6 {[%clk 0:01:17]} 31... Qg3 {[%clk 0:00:19.9]} 32.
b7 {[%clk 0:01:06.1]} 32... Qf2+ {[%clk 0:00:12]} 0-1